Workbook

Sheet Alkmaar Open
A1: Pl. | B1: Naam | C1: Korps | D1: Vereniging | E1: Stek | F1: 1e stek | G1: 2e stek | H1: 3e stek | I1: 4e stek | J1: 5e stek | K1: Tot. pnt. | M1: Hoogste waarden stek 1 t/m 5
A2: 1 | B2: Andre van Kleef | D2: de Schele Posch | E2: 43 | F2: 18 | G2: 24 | H2: 6 | I2: 12 | J2: 1 | K2: =SUM(F2:J2) -> 61 | M2: =LARGE(F2:J2,1) -> 24 | N2: =LARGE(F2:J2,2) -> 18 | O2: =LARGE(F2:J2,3) -> 12 | P2: =LARGE(F2:J2,4) -> 6 | Q2: =LARGE(F2:J2,5) -> 1 | W2: Sorteert op hoogste waarde van kolom K
A3: 2 | B3: Jeroen Buijs | C3: 6 | D3: de Ringdijk | E3: 27 | F3: 13 | G3: 6 | H3: 9 | I3: 14 | J3: 18 | K3: =SUM(F3:J3) -> 60 | M3: =LARGE(F3:J3,1) -> 18 | N3: =LARGE(F3:J3,2) -> 14 | O3: =LARGE(F3:J3,3) -> 13 | P3: =LARGE(F3:J3,4) -> 9 | Q3: =LARGE(F3:J3,5) -> 6 | W3: Vervolgens op hw van M>N>O>P>Q>E
A4: 3 | B4: Henk Roos | D4: Edam '68 | E4: 20 | F4: 14 | G4: 11 | H4: 15 | I4: 10 | J4: 6 | K4: =SUM(F4:J4) -> 56 | M4: =LARGE(F4:J4,1) -> 15 | N4: =LARGE(F4:J4,2) -> 14 | O4: =LARGE(F4:J4,3) -> 11 | P4: =LARGE(F4:J4,4) -> 10 | Q4: =LARGE(F4:J4,5) -> 6
A5: 4 | B5: Remco Heida | C5: 1 | D5: de Schele Posch | E5: 38 | F5: 7 | G5: 14 | H5: 4 | I5: 16 | J5: 6 | K5: =SUM(F5:J5) -> 47 | M5: =LARGE(F5:J5,1) -> 16 | N5: =LARGE(F5:J5,2) -> 14 | O5: =LARGE(F5:J5,3) -> 7 | P5: =LARGE(F5:J5,4) -> 6 | Q5: =LARGE(F5:J5,5) -> 4 | W5: Sorteert op kolom D vervolgens op C
A6: 5 | B6: Gerrit de Wind | C6: 4 | D6: de Eendracht | E6: 42 | F6: 19 | G6: 9 | H6: 11 | I6: 2 | J6: 2 | K6: =SUM(F6:J6) -> 43 | M6: =LARGE(F6:J6,1) -> 19 | N6: =LARGE(F6:J6,2) -> 11 | O6: =LARGE(F6:J6,3) -> 9 | P6: =LARGE(F6:J6,4) -> 2 | Q6: =LARGE(F6:J6,5) -> 2
A7: 6 | B7: Jan Agenant | D7: Alkmaar e.o. | E7: 10 | F7: 7 | G7: 10 | H7: 3 | I7: 5 | J7: 18 | K7: =SUM(F7:J7) -> 43 | M7: =LARGE(F7:J7,1) -> 18 | N7: =LARGE(F7:J7,2) -> 10 | O7: =LARGE(F7:J7,3) -> 7 | P7: =LARGE(F7:J7,4) -> 5 | Q7: =LARGE(F7:J7,5) -> 3
A8: 7 | B8: Peter Posthumus | C8: 4 | D8: de Eendracht | E8: 16 | F8: 9 | G8: 4 | H8: 7 | I8: 16 | J8: 5 | K8: =SUM(F8:J8) -> 41 | M8: =LARGE(F8:J8,1) -> 16 | N8: =LARGE(F8:J8,2) -> 9 | O8: =LARGE(F8:J8,3) -> 7 | P8: =LARGE(F8:J8,4) -> 5 | Q8: =LARGE(F8:J8,5) -> 4 | W8: Sorteert op kolom E vervolgens op C
A9: 8 | B9: Jan de Jonge | C9: 5 | D9: de Sander | E9: 39 | F9: 11 | G9: 12 | H9: 8 | I9: 3 | J9: 7 | K9: =SUM(F9:J9) -> 41 | M9: =LARGE(F9:J9,1) -> 12 | N9: =LARGE(F9:J9,2) -> 11 | O9: =LARGE(F9:J9,3) -> 8 | P9: =LARGE(F9:J9,4) -> 7 | Q9: =LARGE(F9:J9,5) -> 3
A10: 9 | B10: Paul Beerepoot | C10: 6 | D10: de Ringdijk | E10: 44 | F10: 14 | G10: 10 | H10: 4 | I10: 12 | J10: 0 | K10: =SUM(F10:J10) -> 40 | M10: =LARGE(F10:J10,1) -> 14 | N10: =LARGE(F10:J10,2) -> 12 | O10: =LARGE(F10:J10,3) -> 10 | P10: =LARGE(F10:J10,4) -> 4 | Q10: =LARGE(F10:J10,5) -> 0
A11: 10 | B11: Rob Kaars | D11: Edam '68 | E11: 23 | F11: 6 | G11: 20 | H11: 4 | I11: 3 | J11: 5 | K11: =SUM(F11:J11) -> 38 | M11: =LARGE(F11:J11,1) -> 20 | N11: =LARGE(F11:J11,2) -> 6 | O11: =LARGE(F11:J11,3) -> 5 | P11: =LARGE(F11:J11,4) -> 4 | Q11: =LARGE(F11:J11,5) -> 3
A12: 11 | B12: Jan Stam | C12: 1 | D12: de Schele Posch | E12: 30 | F12: 5 | G12: 15 | H12: 5 | I12: 10 | J12: 3 | K12: =SUM(F12:J12) -> 38 | M12: =LARGE(F12:J12,1) -> 15 | N12: =LARGE(F12:J12,2) -> 10 | O12: =LARGE(F12:J12,3) -> 5 | P12: =LARGE(F12:J12,4) -> 5 | Q12: =LARGE(F12:J12,5) -> 3 | W12: Sorteert op hoogste waarde van kolom K
A13: 12 | B13: Arjan Sanders | C13: 6 | D13: de Ringdijk | E13: 15 | F13: 10 | G13: 6 | H13: 4 | I13: 14 | J13: 3 | K13: =SUM(F13:J13) -> 37 | M13: =LARGE(F13:J13,1) -> 14 | N13: =LARGE(F13:J13,2) -> 10 | O13: =LARGE(F13:J13,3) -> 6 | P13: =LARGE(F13:J13,4) -> 4 | Q13: =LARGE(F13:J13,5) -> 3 | W13: Vervolgens op hw van M>N>O>P>Q>C
A14: 13 | B14: Eric Kuiper | D14: Edam '68 | E14: 41 | F14: 11 | G14: 13 | H14: 6 | I14: 5 | J14: 2 | K14: =SUM(F14:J14) -> 37 | M14: =LARGE(F14:J14,1) -> 13 | N14: =LARGE(F14:J14,2) -> 11 | O14: =LARGE(F14:J14,3) -> 6 | P14: =LARGE(F14:J14,4) -> 5 | Q14: =LARGE(F14:J14,5) -> 2
A15: 14 | B15: Cees Sanders | C15: 6 | D15: de Ringdijk | E15: 11 | F15: 9 | G15: 9 | H15: 10 | I15: 8 | J15: 1 | K15: =SUM(F15:J15) -> 37 | M15: =LARGE(F15:J15,1) -> 10 | N15: =LARGE(F15:J15,2) -> 9 | O15: =LARGE(F15:J15,3) -> 9 | P15: =LARGE(F15:J15,4) -> 8 | Q15: =LARGE(F15:J15,5) -> 1 | W15: Sorteert op kolom C
A16: 15 | B16: Nico Engel | C16: 2 | D16: de Schele Posch | E16: 29 | F16: 3 | G16: 5 | H16: 5 | I16: 15 | J16: 8 | K16: =SUM(F16:J16) -> 36 | M16: =LARGE(F16:J16,1) -> 15 | N16: =LARGE(F16:J16,2) -> 8 | O16: =LARGE(F16:J16,3) -> 5 | P16: =LARGE(F16:J16,4) -> 5 | Q16: =LARGE(F16:J16,5) -> 3
A17: 16 | B17: Nico Ooteman | C17: 2 | D17: de Schele Posch | E17: 3 | F17: 4 | G17: 4 | H17: 11 | I17: 14 | J17: 3 | K17: =SUM(F17:J17) -> 36 | M17: =LARGE(F17:J17,1) -> 14 | N17: =LARGE(F17:J17,2) -> 11 | O17: =LARGE(F17:J17,3) -> 4 | P17: =LARGE(F17:J17,4) -> 4 | Q17: =LARGE(F17:J17,5) -> 3
A18: 17 | B18: Jack Kruijer | C18: 3 | D18: Vislust Koedijk | E18: 33 | F18: 6 | G18: 12 | H18: 13 | I18: 1 | J18: 0 | K18: =SUM(F18:J18) -> 32 | M18: =LARGE(F18:J18,1) -> 13 | N18: =LARGE(F18:J18,2) -> 12 | O18: =LARGE(F18:J18,3) -> 6 | P18: =LARGE(F18:J18,4) -> 1 | Q18: =LARGE(F18:J18,5) -> 0
A19: 18 | B19: Kees de Boer | D19: VZOD | E19: 36 | F19: 11 | G19: 4 | H19: 12 | I19: 2 | J19: 3 | K19: =SUM(F19:J19) -> 32 | M19: =LARGE(F19:J19,1) -> 12 | N19: =LARGE(F19:J19,2) -> 11 | O19: =LARGE(F19:J19,3) -> 4 | P19: =LARGE(F19:J19,4) -> 3 | Q19: =LARGE(F19:J19,5) -> 2
A20: 19 | B20: Reinier Gootjes | D20: t Voorntje | E20: 4 | F20: 5 | G20: 4 | H20: 15 | I20: 6 | J20: 1 | K20: =SUM(F20:J20) -> 31 | M20: =LARGE(F20:J20,1) -> 15 | N20: =LARGE(F20:J20,2) -> 6 | O20: =LARGE(F20:J20,3) -> 5 | P20: =LARGE(F20:J20,4) -> 4 | Q20: =LARGE(F20:J20,5) -> 1
A21: 20 | B21: Richard Pronk | C21: 4 | D21: de Eendracht | E21: 32 | F21: 3 | G21: 11 | H21: 10 | I21: 6 | J21: 1 | K21: =SUM(F21:J21) -> 31 | M21: =LARGE(F21:J21,1) -> 11 | N21: =LARGE(F21:J21,2) -> 10 | O21: =LARGE(F21:J21,3) -> 6 | P21: =LARGE(F21:J21,4) -> 3 | Q21: =LARGE(F21:J21,5) -> 1
A22: 21 | B22: Herman Vos | C22: 3 | D22: Vislust Koedijk | E22: 35 | F22: 5 | G22: 12 | H22: 3 | I22: 5 | J22: 3 | K22: =SUM(F22:J22) -> 28 | M22: =LARGE(F22:J22,1) -> 12 | N22: =LARGE(F22:J22,2) -> 5 | O22: =LARGE(F22:J22,3) -> 5 | P22: =LARGE(F22:J22,4) -> 3 | Q22: =LARGE(F22:J22,5) -> 3
A23: 22 | B23: Dirk Swart | D23: de Schele Posch | E23: 18 | F23: 4 | G23: 11 | H23: 2 | I23: 9 | J23: 2 | K23: =SUM(F23:J23) -> 28 | M23: =LARGE(F23:J23,1) -> 11 | N23: =LARGE(F23:J23,2) -> 9 | O23: =LARGE(F23:J23,3) -> 4 | P23: =LARGE(F23:J23,4) -> 2 | Q23: =LARGE(F23:J23,5) -> 2
A24: 23 | B24: Cor Hogeterp | C24: 5 | D24: de Sander | E24: 6 | F24: 8 | G24: 10 | H24: 3 | I24: 6 | J24: 0 | K24: =SUM(F24:J24) -> 27 | M24: =LARGE(F24:J24,1) -> 10 | N24: =LARGE(F24:J24,2) -> 8 | O24: =LARGE(F24:J24,3) -> 6 | P24: =LARGE(F24:J24,4) -> 3 | Q24: =LARGE(F24:J24,5) -> 0
A25: 24 | B25: Pieter Oostwouder | C25: 1 | D25: de Schele Posch | E25: 5 | F25: 7 | G25: 3 | H25: 6 | I25: 8 | J25: 3 | K25: =SUM(F25:J25) -> 27 | M25: =LARGE(F25:J25,1) -> 8 | N25: =LARGE(F25:J25,2) -> 7 | O25: =LARGE(F25:J25,3) -> 6 | P25: =LARGE(F25:J25,4) -> 3 | Q25: =LARGE(F25:J25,5) -> 3
A26: 25 | B26: Nico Pronk | C26: 4 | D26: de Eendracht | E26: 37 | F26: 7 | G26: 5 | H26: 6 | I26: 7 | J26: 2 | K26: =SUM(F26:J26) -> 27 | M26: =LARGE(F26:J26,1) -> 7 | N26: =LARGE(F26:J26,2) -> 7 | O26: =LARGE(F26:J26,3) -> 6 | P26: =LARGE(F26:J26,4) -> 5 | Q26: =LARGE(F26:J26,5) -> 2
A27: 26 | B27: Jannes Diekema | D27: de Sander | E27: 25 | F27: 5 | G27: 9 | H27: 7 | I27: 1 | J27: 2 | K27: =SUM(F27:J27) -> 24 | M27: =LARGE(F27:J27,1) -> 9 | N27: =LARGE(F27:J27,2) -> 7 | O27: =LARGE(F27:J27,3) -> 5 | P27: =LARGE(F27:J27,4) -> 2 | Q27: =LARGE(F27:J27,5) -> 1
A28: 27 | B28: Ernst van Amersfoort | C28: 5 | D28: de Sander | E28: 31 | F28: 0 | G28: 6 | H28: 2 | I28: 6 | J28: 9 | K28: =SUM(F28:J28) -> 23 | M28: =LARGE(F28:J28,1) -> 9 | N28: =LARGE(F28:J28,2) -> 6 | O28: =LARGE(F28:J28,3) -> 6 | P28: =LARGE(F28:J28,4) -> 2 | Q28: =LARGE(F28:J28,5) -> 0
A29: 28 | B29: Geert van Houdt | D29: de Dobber | E29: 8 | F29: 5 | G29: 3 | H29: 6 | I29: 9 | J29: 0 | K29: =SUM(F29:J29) -> 23 | M29: =LARGE(F29:J29,1) -> 9 | N29: =LARGE(F29:J29,2) -> 6 | O29: =LARGE(F29:J29,3) -> 5 | P29: =LARGE(F29:J29,4) -> 3 | Q29: =LARGE(F29:J29,5) -> 0
A30: 29 | B30: Frank Melten | C30: 1 | D30: de Schele Posch | E30: 12 | F30: 4 | G30: 9 | H30: 2 | I30: 6 | J30: 2 | K30: =SUM(F30:J30) -> 23 | M30: =LARGE(F30:J30,1) -> 9 | N30: =LARGE(F30:J30,2) -> 6 | O30: =LARGE(F30:J30,3) -> 4 | P30: =LARGE(F30:J30,4) -> 2 | Q30: =LARGE(F30:J30,5) -> 2
A31: 30 | B31: Theo Markx | D31: VZOD | E31: 28 | F31: 4 | G31: 4 | H31: 4 | I31: 7 | J31: 4 | K31: =SUM(F31:J31) -> 23 | M31: =LARGE(F31:J31,1) -> 7 | N31: =LARGE(F31:J31,2) -> 4 | O31: =LARGE(F31:J31,3) -> 4 | P31: =LARGE(F31:J31,4) -> 4 | Q31: =LARGE(F31:J31,5) -> 4
A32: 31 | B32: Joop Kuiper | D32: Edam '68 | E32: 46 | F32: 5 | G32: 9 | H32: 7 | I32: 1 | J32: 0 | K32: =SUM(F32:J32) -> 22 | M32: =LARGE(F32:J32,1) -> 9 | N32: =LARGE(F32:J32,2) -> 7 | O32: =LARGE(F32:J32,3) -> 5 | P32: =LARGE(F32:J32,4) -> 1 | Q32: =LARGE(F32:J32,5) -> 0
A33: 32 | B33: Charles Engel | C33: 2 | D33: de Schele Posch | E33: 34 | F33: 4 | G33: 3 | H33: 8 | I33: 7 | J33: 0 | K33: =SUM(F33:J33) -> 22 | M33: =LARGE(F33:J33,1) -> 8 | N33: =LARGE(F33:J33,2) -> 7 | O33: =LARGE(F33:J33,3) -> 4 | P33: =LARGE(F33:J33,4) -> 3 | Q33: =LARGE(F33:J33,5) -> 0
A34: 33 | B34: Chris Ooteman | C34: 2 | D34: de Schele Posch | E34: 14 | F34: 4 | G34: 3 | H34: 2 | I34: 5 | J34: 8 | K34: =SUM(F34:J34) -> 22 | M34: =LARGE(F34:J34,1) -> 8 | N34: =LARGE(F34:J34,2) -> 5 | O34: =LARGE(F34:J34,3) -> 4 | P34: =LARGE(F34:J34,4) -> 3 | Q34: =LARGE(F34:J34,5) -> 2
A35: 34 | B35: Henk Dekker | C35: 3 | D35: Vislust Koedijk | E35: 2 | F35: 4 | G35: 3 | H35: 6 | I35: 3 | J35: 6 | K35: =SUM(F35:J35) -> 22 | M35: =LARGE(F35:J35,1) -> 6 | N35: =LARGE(F35:J35,2) -> 6 | O35: =LARGE(F35:J35,3) -> 4 | P35: =LARGE(F35:J35,4) -> 3 | Q35: =LARGE(F35:J35,5) -> 3
A36: 35 | B36: Cor Smit | D36: de Dobber | E36: 21 | F36: 7 | G36: 2 | H36: 7 | I36: 4 | J36: 0 | K36: =SUM(F36:J36) -> 20 | M36: =LARGE(F36:J36,1) -> 7 | N36: =LARGE(F36:J36,2) -> 7 | O36: =LARGE(F36:J36,3) -> 4 | P36: =LARGE(F36:J36,4) -> 2 | Q36: =LARGE(F36:J36,5) -> 0
A37: 36 | B37: Chris Zonneveld | D37: VNK | E37: 40 | F37: 11 | G37: 5 | H37: 1 | I37: 1 | J37: 1 | K37: =SUM(F37:J37) -> 19 | M37: =LARGE(F37:J37,1) -> 11 | N37: =LARGE(F37:J37,2) -> 5 | O37: =LARGE(F37:J37,3) -> 1 | P37: =LARGE(F37:J37,4) -> 1 | Q37: =LARGE(F37:J37,5) -> 1
A38: 37 | B38: Kees Hartland | D38: Vislust Koedijk | E38: 7 | F38: 2 | G38: 3 | H38: 3 | I38: 9 | J38: 2 | K38: =SUM(F38:J38) -> 19 | M38: =LARGE(F38:J38,1) -> 9 | N38: =LARGE(F38:J38,2) -> 3 | O38: =LARGE(F38:J38,3) -> 3 | P38: =LARGE(F38:J38,4) -> 2 | Q38: =LARGE(F38:J38,5) -> 2
A39: 38 | B39: Jos Kaandorp | C39: 3 | D39: Vislust Koedijk | E39: 22 | F39: 2 | G39: 3 | H39: 7 | I39: 6 | J39: 1 | K39: =SUM(F39:J39) -> 19 | M39: =LARGE(F39:J39,1) -> 7 | N39: =LARGE(F39:J39,2) -> 6 | O39: =LARGE(F39:J39,3) -> 3 | P39: =LARGE(F39:J39,4) -> 2 | Q39: =LARGE(F39:J39,5) -> 1
A40: 39 | B40: Sjaak Eckhardt | D40: de Schele Posch | E40: 1 | F40: 3 | G40: 4 | H40: 3 | I40: 4 | J40: 4 | K40: =SUM(F40:J40) -> 18 | M40: =LARGE(F40:J40,1) -> 4 | N40: =LARGE(F40:J40,2) -> 4 | O40: =LARGE(F40:J40,3) -> 4 | P40: =LARGE(F40:J40,4) -> 3 | Q40: =LARGE(F40:J40,5) -> 3
A41: 40 | B41: Frans Hogeterp | C41: 5 | D41: de Sander | E41: 19 | F41: 3 | G41: 5 | H41: 4 | I41: 4 | J41: 1 | K41: =SUM(F41:J41) -> 17 | M41: =LARGE(F41:J41,1) -> 5 | N41: =LARGE(F41:J41,2) -> 4 | O41: =LARGE(F41:J41,3) -> 4 | P41: =LARGE(F41:J41,4) -> 3 | Q41: =LARGE(F41:J41,5) -> 1
A42: 41 | B42: Nico Drost | D42: de Schele Posch | E42: 24 | F42: 5 | G42: 5 | H42: 3 | I42: 2 | J42: 1 | K42: =SUM(F42:J42) -> 16 | M42: =LARGE(F42:J42,1) -> 5 | N42: =LARGE(F42:J42,2) -> 5 | O42: =LARGE(F42:J42,3) -> 3 | P42: =LARGE(F42:J42,4) -> 2 | Q42: =LARGE(F42:J42,5) -> 1
A43: 42 | B43: Jan Bleeker | D43: de Eendracht | E43: 26 | F43: 2 | G43: 4 | H43: 1 | I43: 5 | J43: 4 | K43: =SUM(F43:J43) -> 16 | M43: =LARGE(F43:J43,1) -> 5 | N43: =LARGE(F43:J43,2) -> 4 | O43: =LARGE(F43:J43,3) -> 4 | P43: =LARGE(F43:J43,4) -> 2 | Q43: =LARGE(F43:J43,5) -> 1
A44: 43 | B44: Willem Mink | D44: de Eendracht | E44: 45 | F44: 0 | G44: 3 | H44: 1 | I44: 5 | J44: 1 | K44: =SUM(F44:J44) -> 10 | M44: =LARGE(F44:J44,1) -> 5 | N44: =LARGE(F44:J44,2) -> 3 | O44: =LARGE(F44:J44,3) -> 1 | P44: =LARGE(F44:J44,4) -> 1 | Q44: =LARGE(F44:J44,5) -> 0
A45: 44 | B45: Carla Buijs | D45: de Ringdijk | E45: 17 | F45: 2 | G45: 5 | H45: 0 | I45: 1 | J45: 1 | K45: =SUM(F45:J45) -> 9 | M45: =LARGE(F45:J45,1) -> 5 | N45: =LARGE(F45:J45,2) -> 2 | O45: =LARGE(F45:J45,3) -> 1 | P45: =LARGE(F45:J45,4) -> 1 | Q45: =LARGE(F45:J45,5) -> 0
A46: 45 | B46: Jan Meijer | D46: de Ringdijk | E46: 13 | K46: =SUM(F46:J46) -> 0 | M46: =LARGE(F46:J46,1) ->  | N46: =LARGE(F46:J46,2) ->  | O46: =LARGE(F46:J46,3) ->  | P46: =LARGE(F46:J46,4) ->  | Q46: =LARGE(F46:J46,5) -> 
A47: 46 | B47: Jacq Pater | D47: Geestmerambacht | E47: 9 | K47: =SUM(F47:J47) -> 0 | M47: =LARGE(F47:J47,1) ->  | N47: =LARGE(F47:J47,2) ->  | O47: =LARGE(F47:J47,3) ->  | P47: =LARGE(F47:J47,4) ->  | Q47: =LARGE(F47:J47,5) -> 
A48: 47 | K48: =SUM(F48:J48) -> 0 | M48: =LARGE(F48:J48,1) ->  | N48: =LARGE(F48:J48,2) ->  | O48: =LARGE(F48:J48,3) ->  | P48: =LARGE(F48:J48,4) ->  | Q48: =LARGE(F48:J48,5) -> 
A49: 48 | K49: =SUM(F49:J49) -> 0 | M49: =LARGE(F49:J49,1) ->  | N49: =LARGE(F49:J49,2) ->  | O49: =LARGE(F49:J49,3) ->  | P49: =LARGE(F49:J49,4) ->  | Q49: =LARGE(F49:J49,5) -> 
A50: 49 | K50: =SUM(F50:J50) -> 0 | M50: =LARGE(F50:J50,1) ->  | N50: =LARGE(F50:J50,2) ->  | O50: =LARGE(F50:J50,3) ->  | P50: =LARGE(F50:J50,4) ->  | Q50: =LARGE(F50:J50,5) -> 
A51: 50 | K51: =SUM(F51:J51) -> 0 | M51: =LARGE(F51:J51,1) ->  | N51: =LARGE(F51:J51,2) ->  | O51: =LARGE(F51:J51,3) ->  | P51: =LARGE(F51:J51,4) ->  | Q51: =LARGE(F51:J51,5) -> 
A52: 51 | K52: =SUM(F52:J52) -> 0 | M52: =LARGE(F52:J52,1) ->  | N52: =LARGE(F52:J52,2) ->  | O52: =LARGE(F52:J52,3) ->  | P52: =LARGE(F52:J52,4) ->  | Q52: =LARGE(F52:J52,5) -> 
A53: 52 | K53: =SUM(F53:J53) -> 0 | M53: =LARGE(F53:J53,1) ->  | N53: =LARGE(F53:J53,2) ->  | O53: =LARGE(F53:J53,3) ->  | P53: =LARGE(F53:J53,4) ->  | Q53: =LARGE(F53:J53,5) -> 
A54: 53 | K54: =SUM(F54:J54) -> 0 | M54: =LARGE(F54:J54,1) ->  | N54: =LARGE(F54:J54,2) ->  | O54: =LARGE(F54:J54,3) ->  | P54: =LARGE(F54:J54,4) ->  | Q54: =LARGE(F54:J54,5) -> 
A55: 54 | K55: =SUM(F55:J55) -> 0 | M55: =LARGE(F55:J55,1) ->  | N55: =LARGE(F55:J55,2) ->  | O55: =LARGE(F55:J55,3) ->  | P55: =LARGE(F55:J55,4) ->  | Q55: =LARGE(F55:J55,5) -> 
A56: 55 | K56: =SUM(F56:J56) -> 0 | M56: =LARGE(F56:J56,1) ->  | N56: =LARGE(F56:J56,2) ->  | O56: =LARGE(F56:J56,3) ->  | P56: =LARGE(F56:J56,4) ->  | Q56: =LARGE(F56:J56,5) -> 
A57: 56 | K57: =SUM(F57:J57) -> 0 | M57: =LARGE(F57:J57,1) ->  | N57: =LARGE(F57:J57,2) ->  | O57: =LARGE(F57:J57,3) ->  | P57: =LARGE(F57:J57,4) ->  | Q57: =LARGE(F57:J57,5) -> 
A58: 57 | K58: =SUM(F58:J58) -> 0 | M58: =LARGE(F58:J58,1) ->  | N58: =LARGE(F58:J58,2) ->  | O58: =LARGE(F58:J58,3) ->  | P58: =LARGE(F58:J58,4) ->  | Q58: =LARGE(F58:J58,5) -> 
A59: 58 | K59: =SUM(F59:J59) -> 0 | M59: =LARGE(F59:J59,1) ->  | N59: =LARGE(F59:J59,2) ->  | O59: =LARGE(F59:J59,3) ->  | P59: =LARGE(F59:J59,4) ->  | Q59: =LARGE(F59:J59,5) -> 
A60: 59 | K60: =SUM(F60:J60) -> 0 | M60: =LARGE(F60:J60,1) ->  | N60: =LARGE(F60:J60,2) ->  | O60: =LARGE(F60:J60,3) ->  | P60: =LARGE(F60:J60,4) ->  | Q60: =LARGE(F60:J60,5) -> 
A61: 60 | K61: =SUM(F61:J61) -> 0 | M61: =LARGE(F61:J61,1) ->  | N61: =LARGE(F61:J61,2) ->  | O61: =LARGE(F61:J61,3) ->  | P61: =LARGE(F61:J61,4) ->  | Q61: =LARGE(F61:J61,5) -> 
A63: Pl. | B63: Vereniging | C63: Korps | D63: Korpsdeelnemers | M63: Hoogste waarden stek 1 t/m 5 | S63: Totalen stekken 1 t/m 5
A64: 1 | B64: de Ringdijk | C64: 6 | D64: Jeroen Buijs, Arjan Sanders, Cees Sanders, Paul Beerepoot | K64: =SUMIF($C$2:$C$61,"6",$K$2:$K$61) -> 174 | M64: =LARGE(S64:W64,1) -> 48 | N64: =LARGE(S64:W64,2) -> 46 | O64: =LARGE(S64:W64,3) -> 31 | P64: =LARGE(S64:W64,4) -> 27 | Q64: =LARGE(S64:W64,5) -> 22 | S64: =SUMIF($C$2:$C$61,"6",$F$2:$F$61) -> 46 | T64: =SUMIF($C$2:$C$61,"6",$G$2:$G$61) -> 31 | U64: =SUMIF($C$2:$C$61,"6",$H$2:$H$61) -> 27 | V64: =SUMIF($C$2:$C$61,"6",$I$2:$I$61) -> 48 | W64: =SUMIF($C$2:$C$61,"6",$J$2:$J$61) -> 22
A65: 2 | B65: de Eendracht | C65: 4 | D65: Richard Pronk, Nico Pronk, Peter Posthumus, Gerrit de Wind | K65: =SUMIF($C$2:$C$61,"4",$K$2:$K$61) -> 142 | M65: =LARGE(S65:W65,1) -> 38 | N65: =LARGE(S65:W65,2) -> 34 | O65: =LARGE(S65:W65,3) -> 31 | P65: =LARGE(S65:W65,4) -> 29 | Q65: =LARGE(S65:W65,5) -> 10 | S65: =SUMIF($C$2:$C$61,"4",$F$2:$F$61) -> 38 | T65: =SUMIF($C$2:$C$61,"4",$G$2:$G$61) -> 29 | U65: =SUMIF($C$2:$C$61,"4",$H$2:$H$61) -> 34 | V65: =SUMIF($C$2:$C$61,"4",$I$2:$I$61) -> 31 | W65: =SUMIF($C$2:$C$61,"4",$J$2:$J$61) -> 10
A66: 3 | B66: de Schele Posch 1 | C66: 1 | D66: Frank Melten, Remco Heida, Jan Stam, Pieter Oostwouder | K66: =SUMIF($C$2:$C$61,"1",$K$2:$K$61) -> 135 | M66: =LARGE(S66:W66,1) -> 41 | N66: =LARGE(S66:W66,2) -> 40 | O66: =LARGE(S66:W66,3) -> 23 | P66: =LARGE(S66:W66,4) -> 17 | Q66: =LARGE(S66:W66,5) -> 14 | S66: =SUMIF($C$2:$C$61,"1",$F$2:$F$61) -> 23 | T66: =SUMIF($C$2:$C$61,"1",$G$2:$G$61) -> 41 | U66: =SUMIF($C$2:$C$61,"1",$H$2:$H$61) -> 17 | V66: =SUMIF($C$2:$C$61,"1",$I$2:$I$61) -> 40 | W66: =SUMIF($C$2:$C$61,"1",$J$2:$J$61) -> 14
A67: 4 | B67: de Schele Posch 2 | C67: 2 | D67: Nico Ooteman, Chris Ooteman, Nico Engel, Charles Engel | K67: =SUMIF($C$2:$C$61,"2",$K$2:$K$61) -> 116 | M67: =LARGE(S67:W67,1) -> 41 | N67: =LARGE(S67:W67,2) -> 26 | O67: =LARGE(S67:W67,3) -> 19 | P67: =LARGE(S67:W67,4) -> 15 | Q67: =LARGE(S67:W67,5) -> 15 | S67: =SUMIF($C$2:$C$61,"2",$F$2:$F$61) -> 15 | T67: =SUMIF($C$2:$C$61,"2",$G$2:$G$61) -> 15 | U67: =SUMIF($C$2:$C$61,"2",$H$2:$H$61) -> 26 | V67: =SUMIF($C$2:$C$61,"2",$I$2:$I$61) -> 41 | W67: =SUMIF($C$2:$C$61,"2",$J$2:$J$61) -> 19
A68: 5 | B68: de Sander | C68: 5 | D68: Jan de Jonge, Ernst van Amersfoort, Cor Hogeterp, Frans Hogeterp | K68: =SUMIF($C$2:$C$61,"5",$K$2:$K$61) -> 108 | M68: =LARGE(S68:W68,1) -> 33 | N68: =LARGE(S68:W68,2) -> 22 | O68: =LARGE(S68:W68,3) -> 19 | P68: =LARGE(S68:W68,4) -> 17 | Q68: =LARGE(S68:W68,5) -> 17 | S68: =SUMIF($C$2:$C$61,"5",$F$2:$F$61) -> 22 | T68: =SUMIF($C$2:$C$61,"5",$G$2:$G$61) -> 33 | U68: =SUMIF($C$2:$C$61,"5",$H$2:$H$61) -> 17 | V68: =SUMIF($C$2:$C$61,"5",$I$2:$I$61) -> 19 | W68: =SUMIF($C$2:$C$61,"5",$J$2:$J$61) -> 17
A69: 6 | B69: Vislust Koedijk | C69: 3 | D69: Jos Kaandorp, Herman, Vos, Jack Kruijer, Henk Dekker | K69: =SUMIF($C$2:$C$61,"3",$K$2:$K$61) -> 101 | M69: =LARGE(S69:W69,1) -> 30 | N69: =LARGE(S69:W69,2) -> 29 | O69: =LARGE(S69:W69,3) -> 17 | P69: =LARGE(S69:W69,4) -> 15 | Q69: =LARGE(S69:W69,5) -> 10 | S69: =SUMIF($C$2:$C$61,"3",$F$2:$F$61) -> 17 | T69: =SUMIF($C$2:$C$61,"3",$G$2:$G$61) -> 30 | U69: =SUMIF($C$2:$C$61,"3",$H$2:$H$61) -> 29 | V69: =SUMIF($C$2:$C$61,"3",$I$2:$I$61) -> 15 | W69: =SUMIF($C$2:$C$61,"3",$J$2:$J$61) -> 10
A70: 7 | C70: 13 | K70: =SUMIF($C$2:$C$61,"13",$K$2:$K$61) -> 0 | M70: =LARGE(S70:W70,1) -> 0 | N70: =LARGE(S70:W70,2) -> 0 | O70: =LARGE(S70:W70,3) -> 0 | P70: =LARGE(S70:W70,4) -> 0 | Q70: =LARGE(S70:W70,5) -> 0 | S70: =SUMIF($C$2:$C$61,"13",$F$2:$F$61) -> 0 | T70: =SUMIF($C$2:$C$61,"13",$G$2:$G$61) -> 0 | U70: =SUMIF($C$2:$C$61,"13",$H$2:$H$61) -> 0 | V70: =SUMIF($C$2:$C$61,"13",$I$2:$I$61) -> 0 | W70: =SUMIF($C$2:$C$61,"13",$J$2:$J$61) -> 0
A71: 8 | C71: 12 | K71: =SUMIF($C$2:$C$61,"12",$K$2:$K$61) -> 0 | M71: =LARGE(S71:W71,1) -> 0 | N71: =LARGE(S71:W71,2) -> 0 | O71: =LARGE(S71:W71,3) -> 0 | P71: =LARGE(S71:W71,4) -> 0 | Q71: =LARGE(S71:W71,5) -> 0 | S71: =SUMIF($C$2:$C$61,"12",$F$2:$F$61) -> 0 | T71: =SUMIF($C$2:$C$61,"12",$G$2:$G$61) -> 0 | U71: =SUMIF($C$2:$C$61,"12",$H$2:$H$61) -> 0 | V71: =SUMIF($C$2:$C$61,"12",$I$2:$I$61) -> 0 | W71: =SUMIF($C$2:$C$61,"12",$J$2:$J$61) -> 0
A72: 9 | C72: 11 | K72: =SUMIF($C$2:$C$61,"11",$K$2:$K$61) -> 0 | M72: =LARGE(S72:W72,1) -> 0 | N72: =LARGE(S72:W72,2) -> 0 | O72: =LARGE(S72:W72,3) -> 0 | P72: =LARGE(S72:W72,4) -> 0 | Q72: =LARGE(S72:W72,5) -> 0 | S72: =SUMIF($C$2:$C$61,"11",$F$2:$F$61) -> 0 | T72: =SUMIF($C$2:$C$61,"11",$G$2:$G$61) -> 0 | U72: =SUMIF($C$2:$C$61,"11",$H$2:$H$61) -> 0 | V72: =SUMIF($C$2:$C$61,"11",$I$2:$I$61) -> 0 | W72: =SUMIF($C$2:$C$61,"11",$J$2:$J$61) -> 0
A73: 10 | C73: 10 | K73: =SUMIF($C$2:$C$61,"10",$K$2:$K$61) -> 0 | M73: =LARGE(S73:W73,1) -> 0 | N73: =LARGE(S73:W73,2) -> 0 | O73: =LARGE(S73:W73,3) -> 0 | P73: =LARGE(S73:W73,4) -> 0 | Q73: =LARGE(S73:W73,5) -> 0 | S73: =SUMIF($C$2:$C$61,"10",$F$2:$F$61) -> 0 | T73: =SUMIF($C$2:$C$61,"10",$G$2:$G$61) -> 0 | U73: =SUMIF($C$2:$C$61,"10",$H$2:$H$61) -> 0 | V73: =SUMIF($C$2:$C$61,"10",$I$2:$I$61) -> 0 | W73: =SUMIF($C$2:$C$61,"10",$J$2:$J$61) -> 0
A74: 11 | C74: 9 | K74: =SUMIF($C$2:$C$61,"9",$K$2:$K$61) -> 0 | M74: =LARGE(S74:W74,1) -> 0 | N74: =LARGE(S74:W74,2) -> 0 | O74: =LARGE(S74:W74,3) -> 0 | P74: =LARGE(S74:W74,4) -> 0 | Q74: =LARGE(S74:W74,5) -> 0 | S74: =SUMIF($C$2:$C$61,"9",$F$2:$F$61) -> 0 | T74: =SUMIF($C$2:$C$61,"9",$G$2:$G$61) -> 0 | U74: =SUMIF($C$2:$C$61,"9",$H$2:$H$61) -> 0 | V74: =SUMIF($C$2:$C$61,"9",$I$2:$I$61) -> 0 | W74: =SUMIF($C$2:$C$61,"9",$J$2:$J$61) -> 0
A75: 12 | C75: 8 | K75: =SUMIF($C$2:$C$61,"8",$K$2:$K$61) -> 0 | M75: =LARGE(S75:W75,1) -> 0 | N75: =LARGE(S75:W75,2) -> 0 | O75: =LARGE(S75:W75,3) -> 0 | P75: =LARGE(S75:W75,4) -> 0 | Q75: =LARGE(S75:W75,5) -> 0 | S75: =SUMIF($C$2:$C$61,"8",$F$2:$F$61) -> 0 | T75: =SUMIF($C$2:$C$61,"8",$G$2:$G$61) -> 0 | U75: =SUMIF($C$2:$C$61,"8",$H$2:$H$61) -> 0 | V75: =SUMIF($C$2:$C$61,"8",$I$2:$I$61) -> 0 | W75: =SUMIF($C$2:$C$61,"8",$J$2:$J$61) -> 0
A76: 13 | C76: 7 | K76: =SUMIF($C$2:$C$61,"7",$K$2:$K$61) -> 0 | M76: =LARGE(S76:W76,1) -> 0 | N76: =LARGE(S76:W76,2) -> 0 | O76: =LARGE(S76:W76,3) -> 0 | P76: =LARGE(S76:W76,4) -> 0 | Q76: =LARGE(S76:W76,5) -> 0 | S76: =SUMIF($C$2:$C$61,"7",$F$2:$F$61) -> 0 | T76: =SUMIF($C$2:$C$61,"7",$G$2:$G$61) -> 0 | U76: =SUMIF($C$2:$C$61,"7",$H$2:$H$61) -> 0 | V76: =SUMIF($C$2:$C$61,"7",$I$2:$I$61) -> 0 | W76: =SUMIF($C$2:$C$61,"7",$J$2:$J$61) -> 0
A78: Aantal deelnemers: | C78: 44 | E78: Gemiddeld | F78: 1e stek | G78: 2e stek | H78: 3e stek | I78: 4e stek | J78: 5e stek | K78: Totaal
A79: Totaal aantal baarzen: | C79: =SUM(K2:K61) -> 1321 | F79: =SUM(F2:F61)/C78 -> 6.545454545 | G79: =SUM(G2:G61)/C78 -> 7.545454545 | H79: =SUM(H2:H61)/C78 -> 5.818181818 | I79: =SUM(I2:I61)/C78 -> 6.704545455 | J79: =SUM(J2:J61)/C78 -> 3.409090909 | K79: =SUM(K2:K61)/C78 -> 30.02272727
A81: 1000-eilanden trofee 2018
